{"text_format":"1","workbook":"xlsx","n_sheets":2,"sheets":["وصل ","سعر"],"not_rendered":{"charts":0,"images":0,"macros":1,"external_links":0,"defined_names":0,"comments":0,"pivot_tables":0},"unopened":[],"bounds":{"document_bytes":16777216,"sheet_cells":100000,"rows_first":2000,"rows_last":500,"rows_between":2000,"halvings":0,"cell_chars":16384,"cell_head_chars":4096},"cells_cut":0,"cells_raw":0,"read":"whole","date_system":"1900"}

{"sheet":"وصل ","index":0,"n_rows":39,"n_cols":7,"rows_kept":39,"cut":false,"hidden":false,"merged":[]}
["     "," ","محلات الخفاجي 07814539337  ابي غرق "]
[null,"الاسم ",null,null,"التاريخ ",{"$f":"TODAY()","v":"2019-11-11"}]
["ت ","المادة ","الحجم","الكمية ","سعر المفرد ","المجموع ","الملاحظات "]
[1,"حجر كوسرة ","عدد",3,{"$f":"IF(AND(B4=\"\"),\"\",INDEX(سعر!B:B,MATCH('وصل '!B4,سعر!A:A,0)))","v":30000},{"$f":"IF(OR(D4=\"\",E4=\"\"),\"\",D4*E4)","v":90000}]
[2,"مصابيح شحن ","باكيت ",3,{"$f":"IF(AND(B5=\"\"),\"\",INDEX(سعر!B:B,MATCH('وصل '!B5,سعر!A:A,0)))","v":5000},{"$f":"IF(OR(D5=\"\",E5=\"\"),\"\",D5*E5)","v":15000}]
[3,"صبغ ","باكيت ",12,{"$f":"IF(AND(B6=\"\"),\"\",INDEX(سعر!B:B,MATCH('وصل '!B6,سعر!A:A,0)))","v":5000},60000]
[4,"مصابيح عادية ","كغم ",2,{"$f":"IF(AND(B7=\"\"),\"\",INDEX(سعر!B:B,MATCH('وصل '!B7,سعر!A:A,0)))","v":2000},4000]
[5,"صبغ ","عدد",5,{"$f":"IF(AND(B8=\"\"),\"\",INDEX(سعر!B:B,MATCH('وصل '!B8,سعر!A:A,0)))","v":5000},25000]
[6,"سبانة ","سيت ",5,{"$f":"IF(AND(B9=\"\"),\"\",INDEX(سعر!B:B,MATCH('وصل '!B9,سعر!A:A,0)))","v":12000},60000]
[7,"تانكي ","عدد",2,{"$f":"IF(AND(B10=\"\"),\"\",INDEX(سعر!B:B,MATCH('وصل '!B10,سعر!A:A,0)))","v":50000},100000]
[8,"دريل همر ","عدد",3,{"$f":"IF(AND(B11=\"\"),\"\",INDEX(سعر!B:B,MATCH('وصل '!B11,سعر!A:A,0)))","v":100000},300000]
[9,"ريمونت ","عدد",2,{"$f":"IF(AND(B12=\"\"),\"\",INDEX(سعر!B:B,MATCH('وصل '!B12,سعر!A:A,0)))","v":1500},3000]
[10,"سبانة ","سيت ",3,{"$f":"IF(AND(B13=\"\"),\"\",INDEX(سعر!B:B,MATCH('وصل '!B13,سعر!A:A,0)))","v":12000},36000]
[11,"تانكي ","عدد",6,{"$f":"IF(AND(B14=\"\"),\"\",INDEX(سعر!B:B,MATCH('وصل '!B14,سعر!A:A,0)))","v":50000},300000]
[12,"طابعة ","عدد",3,{"$f":"IF(AND(B15=\"\"),\"\",INDEX(سعر!B:B,MATCH('وصل '!B15,سعر!A:A,0)))","v":20000},60000]
[13,"منشار ","عدد",8,{"$f":"IF(AND(B16=\"\"),\"\",INDEX(سعر!B:B,MATCH('وصل '!B16,سعر!A:A,0)))","v":200},1600]
[14,null,"",null,{"$f":"IF(AND(B17=\"\"),\"\",INDEX(سعر!B:B,MATCH('وصل '!B17,سعر!A:A,0)))","v":""},""]
[15,null,"",null,{"$f":"IF(AND(B18=\"\"),\"\",INDEX(سعر!B:B,MATCH('وصل '!B18,سعر!A:A,0)))","v":""},""]
[16,null,"",null,{"$f":"IF(AND(B19=\"\"),\"\",INDEX(سعر!B:B,MATCH('وصل '!B19,سعر!A:A,0)))","v":""},""]
[17,null,"",null,{"$f":"IF(AND(B20=\"\"),\"\",INDEX(سعر!B:B,MATCH('وصل '!B20,سعر!A:A,0)))","v":""},""]
[18,null,"",null,{"$f":"IF(AND(B21=\"\"),\"\",INDEX(سعر!B:B,MATCH('وصل '!B21,سعر!A:A,0)))","v":""},""]
[19,null,"",null,{"$f":"IF(AND(B22=\"\"),\"\",INDEX(سعر!B:B,MATCH('وصل '!B22,سعر!A:A,0)))","v":""},""]
[20,null,"",null,{"$f":"IF(AND(B23=\"\"),\"\",INDEX(سعر!B:B,MATCH('وصل '!B23,سعر!A:A,0)))","v":""},""]
[21,null,"",null,{"$f":"IF(AND(B24=\"\"),\"\",INDEX(سعر!B:B,MATCH('وصل '!B24,سعر!A:A,0)))","v":""},""]
[22,null,"",null,{"$f":"IF(AND(B25=\"\"),\"\",INDEX(سعر!B:B,MATCH('وصل '!B25,سعر!A:A,0)))","v":""},""]
[23,null,"",null,{"$f":"IF(AND(B26=\"\"),\"\",INDEX(سعر!B:B,MATCH('وصل '!B26,سعر!A:A,0)))","v":""},""]
[24,null,"",null,{"$f":"IF(AND(B27=\"\"),\"\",INDEX(سعر!B:B,MATCH('وصل '!B27,سعر!A:A,0)))","v":""},""]
[25,null,"",null,{"$f":"IF(AND(B28=\"\"),\"\",INDEX(سعر!B:B,MATCH('وصل '!B28,سعر!A:A,0)))","v":""},""]
[26,null,"",null,{"$f":"IF(AND(B29=\"\"),\"\",INDEX(سعر!B:B,MATCH('وصل '!B29,سعر!A:A,0)))","v":""},""]
[27,null,"",null,{"$f":"IF(AND(B30=\"\"),\"\",INDEX(سعر!B:B,MATCH('وصل '!B30,سعر!A:A,0)))","v":""},""]
[28,null,"",null,{"$f":"IF(AND(B31=\"\"),\"\",INDEX(سعر!B:B,MATCH('وصل '!B31,سعر!A:A,0)))","v":""},""]
[29,null,"",null,{"$f":"IF(AND(B32=\"\"),\"\",INDEX(سعر!B:B,MATCH('وصل '!B32,سعر!A:A,0)))","v":""},""]
[30,null,"",null,{"$f":"IF(AND(B33=\"\"),\"\",INDEX(سعر!B:B,MATCH('وصل '!B33,سعر!A:A,0)))","v":""},""]
[42,null,"",null,{"$f":"IF(AND(B34=\"\"),\"\",INDEX(سعر!B:B,MATCH('وصل '!B34,سعر!A:A,0)))","v":""}]
[43,null,"",null,{"$f":"IF(AND(B35=\"\"),\"\",INDEX(سعر!B:B,MATCH('وصل '!B35,سعر!A:A,0)))","v":""},""]
[null,"المجموع ",null,null,null,{"$f":"SUM(F4:F35)","v":1054600},{"$f":"NoToTxt(F36,\"دينار \",\"فلس \")","v":"ЭЮШ  гбнжд жГСИЪЙ жОгУжд ГбЭ жУКгЗЖЙ دينار "}]
[null,"الواصل ",null,null,30000,null,{"$f":"IF(AND(E37=\"\"),\"\",NoToTxt(E37,\"دينار \",\"فلس \"))","v":"فقط ثلاثون ألف دينار "}]
[null,"الباقي ",null,null,null,{"$f":"F36-E37","v":1024600},{"$f":"NoToTxt(F38,\"دينار \",\"فلس \")","v":"ЭЮШ  гбнжд жГСИЪЙ жЪФСжд ГбЭ жУКгЗЖЙ دينار "}]
["الغلط والسهو مرجوع للطرفين ...................."]

{"sheet":"سعر","index":1,"n_rows":151,"n_cols":14,"rows_kept":151,"cut":false,"hidden":false,"merged":[]}
["المادة ","سعر المفرد ","الحجم ",{"$f":"TODAY()","v":"2019-11-11"}]
["حجر كوسرة ",30000,"عدد",null,null,null,null,null,null,null,null,null,null,{"$f":"IFERROR(INDEX($A$2:$A$7000,MATCH(0,COUNTIF($N$1:$N1,$A$2:$A$7000),0)),\"\")","v":"حجر كوسرة "}]
["مصابيح شحن ",5000,"باكيت ",null,null,null,null,null,null,null,null,null,null,{"$f":"IFERROR(INDEX($A$2:$A$7000,MATCH(0,COUNTIF($N$1:$N2,$A$2:$A$7000),0)),\"\")","v":"مصابيح شحن "}]
["مصابيح عادية ",2000,"باكيت ",null,null,null,null,null,null,null,null,null,null,{"$f":"IFERROR(INDEX($A$2:$A$7000,MATCH(0,COUNTIF($N$1:$N3,$A$2:$A$7000),0)),\"\")","v":"مصابيح عادية "}]
["بسامير ",3000,"كغم ",null,null,null,null,null,null,null,null,null,null,{"$f":"IFERROR(INDEX($A$2:$A$7000,MATCH(0,COUNTIF($N$1:$N4,$A$2:$A$7000),0)),\"\")","v":"بسامير "}]
["تانكي ",50000,"عدد",null,null,null,null,null,null,null,null,null,null,{"$f":"IFERROR(INDEX($A$2:$A$7000,MATCH(0,COUNTIF($N$1:$N5,$A$2:$A$7000),0)),\"\")","v":"تانكي "}]
["حجر قطع ",1500,"عدد",null,null,null,null,null,null,null,null,null,null,{"$f":"IFERROR(INDEX($A$2:$A$7000,MATCH(0,COUNTIF($N$1:$N6,$A$2:$A$7000),0)),\"\")","v":"حجر قطع "}]
["سبانة ",12000,"سيت ",null,null,null,null,null,null,null,null,null,null,{"$f":"IFERROR(INDEX($A$2:$A$7000,MATCH(0,COUNTIF($N$1:$N7,$A$2:$A$7000),0)),\"\")","v":"سبانة "}]
["صبغ ",5000,"عدد",null,null,null,null,null,null,null,null,null,null,{"$f":"IFERROR(INDEX($A$2:$A$7000,MATCH(0,COUNTIF($N$1:$N8,$A$2:$A$7000),0)),\"\")","v":"صبغ "}]
["دريل همر ",100000,"عدد",null,null,null,null,null,null,null,null,null,null,{"$f":"IFERROR(INDEX($A$2:$A$7000,MATCH(0,COUNTIF($N$1:$N9,$A$2:$A$7000),0)),\"\")","v":"دريل همر "}]
["ريمونت ",1500,"عدد",null,null,null,null,null,null,null,null,null,null,{"$f":"IFERROR(INDEX($A$2:$A$7000,MATCH(0,COUNTIF($N$1:$N10,$A$2:$A$7000),0)),\"\")","v":"ريمونت "}]
["طابعة ",20000,"عدد",null,null,null,null,null,null,null,null,null,null,{"$f":"IFERROR(INDEX($A$2:$A$7000,MATCH(0,COUNTIF($N$1:$N11,$A$2:$A$7000),0)),\"\")","v":"طابعة "}]
["منشار ",200,"عدد",null,null,null,null,null,null,null,null,null,null,{"$f":"IFERROR(INDEX($A$2:$A$7000,MATCH(0,COUNTIF($N$1:$N12,$A$2:$A$7000),0)),\"\")","v":"منشار "}]
["جداحة ",9000,"باكيت ",null,null,null,null,null,null,null,null,null,null,{"$f":"IFERROR(INDEX($A$2:$A$7000,MATCH(0,COUNTIF($N$1:$N13,$A$2:$A$7000),0)),\"\")","v":"جداحة "}]
["واير كهرباء سيمنز ",1000,"متر ",null,null,null,null,null,null,null,null,null,null,{"$f":"IFERROR(INDEX($A$2:$A$7000,MATCH(0,COUNTIF($N$1:$N14,$A$2:$A$7000),0)),\"\")","v":"واير كهرباء سيمنز "}]
[null,null,null,null,null,null,null,null,null,null,null,null,null,{"$f":"IFERROR(INDEX($A$2:$A$7000,MATCH(0,COUNTIF($N$1:$N15,$A$2:$A$7000),0)),\"\")","v":0}]
[null,null,null,null,null,null,null,null,null,null,null,null,null,{"$f":"IFERROR(INDEX($A$2:$A$7000,MATCH(0,COUNTIF($N$1:$N16,$A$2:$A$7000),0)),\"\")","v":""}]
[null,null,null,null,null,null,null,null,null,null,null,null,null,{"$f":"IFERROR(INDEX($A$2:$A$7000,MATCH(0,COUNTIF($N$1:$N17,$A$2:$A$7000),0)),\"\")","v":""}]
[null,null,null,null,null,null,null,null,null,null,null,null,null,{"$f":"IFERROR(INDEX($A$2:$A$7000,MATCH(0,COUNTIF($N$1:$N18,$A$2:$A$7000),0)),\"\")","v":""}]
[null,null,null,null,null,null,null,null,null,null,null,null,null,{"$f":"IFERROR(INDEX($A$2:$A$7000,MATCH(0,COUNTIF($N$1:$N19,$A$2:$A$7000),0)),\"\")","v":""}]
[null,null,null,null,null,null,null,null,null,null,null,null,null,{"$f":"IFERROR(INDEX($A$2:$A$7000,MATCH(0,COUNTIF($N$1:$N20,$A$2:$A$7000),0)),\"\")","v":""}]
[null,null,null,null,null,null,null,null,null,null,null,null,null,{"$f":"IFERROR(INDEX($A$2:$A$7000,MATCH(0,COUNTIF($N$1:$N21,$A$2:$A$7000),0)),\"\")","v":""}]
[null,null,null,null,null,null,null,null,null,null,null,null,null,{"$f":"IFERROR(INDEX($A$2:$A$7000,MATCH(0,COUNTIF($N$1:$N22,$A$2:$A$7000),0)),\"\")","v":""}]
[null,null,null,null,null,null,null,null,null,null,null,null,null,{"$f":"IFERROR(INDEX($A$2:$A$7000,MATCH(0,COUNTIF($N$1:$N23,$A$2:$A$7000),0)),\"\")","v":""}]
[null,null,null,null,null,null,null,null,null,null,null,null,null,{"$f":"IFERROR(INDEX($A$2:$A$7000,MATCH(0,COUNTIF($N$1:$N24,$A$2:$A$7000),0)),\"\")","v":""}]
[null,null,null,null,null,null,null,null,null,null,null,null,null,{"$f":"IFERROR(INDEX($A$2:$A$7000,MATCH(0,COUNTIF($N$1:$N25,$A$2:$A$7000),0)),\"\")","v":""}]
[null,null,null,null,null,null,null,null,null,null,null,null,null,{"$f":"IFERROR(INDEX($A$2:$A$7000,MATCH(0,COUNTIF($N$1:$N26,$A$2:$A$7000),0)),\"\")","v":""}]
[null,null,null,null,null,null,null,null,null,null,null,null,null,{"$f":"IFERROR(INDEX($A$2:$A$7000,MATCH(0,COUNTIF($N$1:$N27,$A$2:$A$7000),0)),\"\")","v":""}]
[null,null,null,null,null,null,null,null,null,null,null,null,null,{"$f":"IFERROR(INDEX($A$2:$A$7000,MATCH(0,COUNTIF($N$1:$N28,$A$2:$A$7000),0)),\"\")","v":""}]
[null,null,null,null,null,null,null,null,null,null,null,null,null,{"$f":"IFERROR(INDEX($A$2:$A$7000,MATCH(0,COUNTIF($N$1:$N29,$A$2:$A$7000),0)),\"\")","v":""}]
[null,null,null,null,null,null,null,null,null,null,null,null,null,{"$f":"IFERROR(INDEX($A$2:$A$7000,MATCH(0,COUNTIF($N$1:$N30,$A$2:$A$7000),0)),\"\")","v":""}]
[null,null,null,null,null,null,null,null,null,null,null,null,null,{"$f":"IFERROR(INDEX($A$2:$A$7000,MATCH(0,COUNTIF($N$1:$N31,$A$2:$A$7000),0)),\"\")","v":""}]
[null,null,null,null,null,null,null,null,null,null,null,null,null,{"$f":"IFERROR(INDEX($A$2:$A$7000,MATCH(0,COUNTIF($N$1:$N32,$A$2:$A$7000),0)),\"\")","v":""}]
[null,null,null,null,null,null,null,null,null,null,null,null,null,{"$f":"IFERROR(INDEX($A$2:$A$7000,MATCH(0,COUNTIF($N$1:$N33,$A$2:$A$7000),0)),\"\")","v":""}]
[null,null,null,null,null,null,null,null,null,null,null,null,null,{"$f":"IFERROR(INDEX($A$2:$A$7000,MATCH(0,COUNTIF($N$1:$N34,$A$2:$A$7000),0)),\"\")","v":""}]
[null,null,null,null,null,null,null,null,null,null,null,null,null,{"$f":"IFERROR(INDEX($A$2:$A$7000,MATCH(0,COUNTIF($N$1:$N35,$A$2:$A$7000),0)),\"\")","v":""}]
[null,null,null,null,null,null,null,null,null,null,null,null,null,{"$f":"IFERROR(INDEX($A$2:$A$7000,MATCH(0,COUNTIF($N$1:$N36,$A$2:$A$7000),0)),\"\")","v":""}]
[null,null,null,null,null,null,null,null,null,null,null,null,null,{"$f":"IFERROR(INDEX($A$2:$A$7000,MATCH(0,COUNTIF($N$1:$N37,$A$2:$A$7000),0)),\"\")","v":""}]
[null,null,null,null,null,null,null,null,null,null,null,null,null,{"$f":"IFERROR(INDEX($A$2:$A$7000,MATCH(0,COUNTIF($N$1:$N38,$A$2:$A$7000),0)),\"\")","v":""}]
[null,null,null,null,null,null,null,null,null,null,null,null,null,{"$f":"IFERROR(INDEX($A$2:$A$7000,MATCH(0,COUNTIF($N$1:$N39,$A$2:$A$7000),0)),\"\")","v":""}]
[null,null,null,null,null,null,null,null,null,null,null,null,null,{"$f":"IFERROR(INDEX($A$2:$A$7000,MATCH(0,COUNTIF($N$1:$N40,$A$2:$A$7000),0)),\"\")","v":""}]
[null,null,null,null,null,null,null,null,null,null,null,null,null,{"$f":"IFERROR(INDEX($A$2:$A$7000,MATCH(0,COUNTIF($N$1:$N41,$A$2:$A$7000),0)),\"\")","v":""}]
[null,null,null,null,null,null,null,null,null,null,null,null,null,{"$f":"IFERROR(INDEX($A$2:$A$7000,MATCH(0,COUNTIF($N$1:$N42,$A$2:$A$7000),0)),\"\")","v":""}]
[null,null,null,null,null,null,null,null,null,null,null,null,null,{"$f":"IFERROR(INDEX($A$2:$A$7000,MATCH(0,COUNTIF($N$1:$N43,$A$2:$A$7000),0)),\"\")","v":""}]
[null,null,null,null,null,null,null,null,null,null,null,null,null,{"$f":"IFERROR(INDEX($A$2:$A$7000,MATCH(0,COUNTIF($N$1:$N44,$A$2:$A$7000),0)),\"\")","v":""}]
[null,null,null,null,null,null,null,null,null,null,null,null,null,{"$f":"IFERROR(INDEX($A$2:$A$7000,MATCH(0,COUNTIF($N$1:$N45,$A$2:$A$7000),0)),\"\")","v":""}]
[null,null,null,null,null,null,null,null,null,null,null,null,null,{"$f":"IFERROR(INDEX($A$2:$A$7000,MATCH(0,COUNTIF($N$1:$N46,$A$2:$A$7000),0)),\"\")","v":""}]
[null,null,null,null,null,null,null,null,null,null,null,null,null,{"$f":"IFERROR(INDEX($A$2:$A$7000,MATCH(0,COUNTIF($N$1:$N47,$A$2:$A$7000),0)),\"\")","v":""}]
[null,null,null,null,null,null,null,null,null,null,null,null,null,{"$f":"IFERROR(INDEX($A$2:$A$7000,MATCH(0,COUNTIF($N$1:$N48,$A$2:$A$7000),0)),\"\")","v":""}]
[null,null,null,null,null,null,null,null,null,null,null,null,null,{"$f":"IFERROR(INDEX($A$2:$A$7000,MATCH(0,COUNTIF($N$1:$N49,$A$2:$A$7000),0)),\"\")","v":""}]
[null,null,null,null,null,null,null,null,null,null,null,null,null,{"$f":"IFERROR(INDEX($A$2:$A$7000,MATCH(0,COUNTIF($N$1:$N50,$A$2:$A$7000),0)),\"\")","v":""}]
[null,null,null,null,null,null,null,null,null,null,null,null,null,{"$f":"IFERROR(INDEX($A$2:$A$7000,MATCH(0,COUNTIF($N$1:$N51,$A$2:$A$7000),0)),\"\")","v":""}]
[null,null,null,null,null,null,null,null,null,null,null,null,null,{"$f":"IFERROR(INDEX($A$2:$A$7000,MATCH(0,COUNTIF($N$1:$N52,$A$2:$A$7000),0)),\"\")","v":""}]
[null,null,null,null,null,null,null,null,null,null,null,null,null,{"$f":"IFERROR(INDEX($A$2:$A$7000,MATCH(0,COUNTIF($N$1:$N53,$A$2:$A$7000),0)),\"\")","v":""}]
[null,null,null,null,null,null,null,null,null,null,null,null,null,{"$f":"IFERROR(INDEX($A$2:$A$7000,MATCH(0,COUNTIF($N$1:$N54,$A$2:$A$7000),0)),\"\")","v":""}]
[null,null,null,null,null,null,null,null,null,null,null,null,null,{"$f":"IFERROR(INDEX($A$2:$A$7000,MATCH(0,COUNTIF($N$1:$N55,$A$2:$A$7000),0)),\"\")","v":""}]
[null,null,null,null,null,null,null,null,null,null,null,null,null,{"$f":"IFERROR(INDEX($A$2:$A$7000,MATCH(0,COUNTIF($N$1:$N56,$A$2:$A$7000),0)),\"\")","v":""}]
[null,null,null,null,null,null,null,null,null,null,null,null,null,{"$f":"IFERROR(INDEX($A$2:$A$7000,MATCH(0,COUNTIF($N$1:$N57,$A$2:$A$7000),0)),\"\")","v":""}]
[null,null,null,null,null,null,null,null,null,null,null,null,null,{"$f":"IFERROR(INDEX($A$2:$A$7000,MATCH(0,COUNTIF($N$1:$N58,$A$2:$A$7000),0)),\"\")","v":""}]
[null,null,null,null,null,null,null,null,null,null,null,null,null,{"$f":"IFERROR(INDEX($A$2:$A$7000,MATCH(0,COUNTIF($N$1:$N59,$A$2:$A$7000),0)),\"\")","v":""}]
[null,null,null,null,null,null,null,null,null,null,null,null,null,{"$f":"IFERROR(INDEX($A$2:$A$7000,MATCH(0,COUNTIF($N$1:$N60,$A$2:$A$7000),0)),\"\")","v":""}]
[null,null,null,null,null,null,null,null,null,null,null,null,null,{"$f":"IFERROR(INDEX($A$2:$A$7000,MATCH(0,COUNTIF($N$1:$N61,$A$2:$A$7000),0)),\"\")","v":""}]
[null,null,null,null,null,null,null,null,null,null,null,null,null,{"$f":"IFERROR(INDEX($A$2:$A$7000,MATCH(0,COUNTIF($N$1:$N62,$A$2:$A$7000),0)),\"\")","v":""}]
[null,null,null,null,null,null,null,null,null,null,null,null,null,{"$f":"IFERROR(INDEX($A$2:$A$7000,MATCH(0,COUNTIF($N$1:$N63,$A$2:$A$7000),0)),\"\")","v":""}]
[null,null,null,null,null,null,null,null,null,null,null,null,null,{"$f":"IFERROR(INDEX($A$2:$A$7000,MATCH(0,COUNTIF($N$1:$N64,$A$2:$A$7000),0)),\"\")","v":""}]
[null,null,null,null,null,null,null,null,null,null,null,null,null,{"$f":"IFERROR(INDEX($A$2:$A$7000,MATCH(0,COUNTIF($N$1:$N65,$A$2:$A$7000),0)),\"\")","v":""}]
[null,null,null,null,null,null,null,null,null,null,null,null,null,{"$f":"IFERROR(INDEX($A$2:$A$7000,MATCH(0,COUNTIF($N$1:$N66,$A$2:$A$7000),0)),\"\")","v":""}]
[null,null,null,null,null,null,null,null,null,null,null,null,null,{"$f":"IFERROR(INDEX($A$2:$A$7000,MATCH(0,COUNTIF($N$1:$N67,$A$2:$A$7000),0)),\"\")","v":""}]
[null,null,null,null,null,null,null,null,null,null,null,null,null,{"$f":"IFERROR(INDEX($A$2:$A$7000,MATCH(0,COUNTIF($N$1:$N68,$A$2:$A$7000),0)),\"\")","v":""}]
[null,null,null,null,null,null,null,null,null,null,null,null,null,{"$f":"IFERROR(INDEX($A$2:$A$7000,MATCH(0,COUNTIF($N$1:$N69,$A$2:$A$7000),0)),\"\")","v":""}]
[null,null,null,null,null,null,null,null,null,null,null,null,null,{"$f":"IFERROR(INDEX($A$2:$A$7000,MATCH(0,COUNTIF($N$1:$N70,$A$2:$A$7000),0)),\"\")","v":""}]
[null,null,null,null,null,null,null,null,null,null,null,null,null,{"$f":"IFERROR(INDEX($A$2:$A$7000,MATCH(0,COUNTIF($N$1:$N71,$A$2:$A$7000),0)),\"\")","v":""}]
[null,null,null,null,null,null,null,null,null,null,null,null,null,{"$f":"IFERROR(INDEX($A$2:$A$7000,MATCH(0,COUNTIF($N$1:$N72,$A$2:$A$7000),0)),\"\")","v":""}]
[null,null,null,null,null,null,null,null,null,null,null,null,null,{"$f":"IFERROR(INDEX($A$2:$A$7000,MATCH(0,COUNTIF($N$1:$N73,$A$2:$A$7000),0)),\"\")","v":""}]
[null,null,null,null,null,null,null,null,null,null,null,null,null,{"$f":"IFERROR(INDEX($A$2:$A$7000,MATCH(0,COUNTIF($N$1:$N74,$A$2:$A$7000),0)),\"\")","v":""}]
[null,null,null,null,null,null,null,null,null,null,null,null,null,{"$f":"IFERROR(INDEX($A$2:$A$7000,MATCH(0,COUNTIF($N$1:$N75,$A$2:$A$7000),0)),\"\")","v":""}]
[null,null,null,null,null,null,null,null,null,null,null,null,null,{"$f":"IFERROR(INDEX($A$2:$A$7000,MATCH(0,COUNTIF($N$1:$N76,$A$2:$A$7000),0)),\"\")","v":""}]
[null,null,null,null,null,null,null,null,null,null,null,null,null,{"$f":"IFERROR(INDEX($A$2:$A$7000,MATCH(0,COUNTIF($N$1:$N77,$A$2:$A$7000),0)),\"\")","v":""}]
[null,null,null,null,null,null,null,null,null,null,null,null,null,{"$f":"IFERROR(INDEX($A$2:$A$7000,MATCH(0,COUNTIF($N$1:$N78,$A$2:$A$7000),0)),\"\")","v":""}]
[null,null,null,null,null,null,null,null,null,null,null,null,null,{"$f":"IFERROR(INDEX($A$2:$A$7000,MATCH(0,COUNTIF($N$1:$N79,$A$2:$A$7000),0)),\"\")","v":""}]
[null,null,null,null,null,null,null,null,null,null,null,null,null,{"$f":"IFERROR(INDEX($A$2:$A$7000,MATCH(0,COUNTIF($N$1:$N80,$A$2:$A$7000),0)),\"\")","v":""}]
[null,null,null,null,null,null,null,null,null,null,null,null,null,{"$f":"IFERROR(INDEX($A$2:$A$7000,MATCH(0,COUNTIF($N$1:$N81,$A$2:$A$7000),0)),\"\")","v":""}]
[null,null,null,null,null,null,null,null,null,null,null,null,null,{"$f":"IFERROR(INDEX($A$2:$A$7000,MATCH(0,COUNTIF($N$1:$N82,$A$2:$A$7000),0)),\"\")","v":""}]
[null,null,null,null,null,null,null,null,null,null,null,null,null,{"$f":"IFERROR(INDEX($A$2:$A$7000,MATCH(0,COUNTIF($N$1:$N83,$A$2:$A$7000),0)),\"\")","v":""}]
[null,null,null,null,null,null,null,null,null,null,null,null,null,{"$f":"IFERROR(INDEX($A$2:$A$7000,MATCH(0,COUNTIF($N$1:$N84,$A$2:$A$7000),0)),\"\")","v":""}]
[null,null,null,null,null,null,null,null,null,null,null,null,null,{"$f":"IFERROR(INDEX($A$2:$A$7000,MATCH(0,COUNTIF($N$1:$N85,$A$2:$A$7000),0)),\"\")","v":""}]
[null,null,null,null,null,null,null,null,null,null,null,null,null,{"$f":"IFERROR(INDEX($A$2:$A$7000,MATCH(0,COUNTIF($N$1:$N86,$A$2:$A$7000),0)),\"\")","v":""}]
[null,null,null,null,null,null,null,null,null,null,null,null,null,{"$f":"IFERROR(INDEX($A$2:$A$7000,MATCH(0,COUNTIF($N$1:$N87,$A$2:$A$7000),0)),\"\")","v":""}]
[null,null,null,null,null,null,null,null,null,null,null,null,null,{"$f":"IFERROR(INDEX($A$2:$A$7000,MATCH(0,COUNTIF($N$1:$N88,$A$2:$A$7000),0)),\"\")","v":""}]
[null,null,null,null,null,null,null,null,null,null,null,null,null,{"$f":"IFERROR(INDEX($A$2:$A$7000,MATCH(0,COUNTIF($N$1:$N89,$A$2:$A$7000),0)),\"\")","v":""}]
[null,null,null,null,null,null,null,null,null,null,null,null,null,{"$f":"IFERROR(INDEX($A$2:$A$7000,MATCH(0,COUNTIF($N$1:$N90,$A$2:$A$7000),0)),\"\")","v":""}]
[null,null,null,null,null,null,null,null,null,null,null,null,null,{"$f":"IFERROR(INDEX($A$2:$A$7000,MATCH(0,COUNTIF($N$1:$N91,$A$2:$A$7000),0)),\"\")","v":""}]
[null,null,null,null,null,null,null,null,null,null,null,null,null,{"$f":"IFERROR(INDEX($A$2:$A$7000,MATCH(0,COUNTIF($N$1:$N92,$A$2:$A$7000),0)),\"\")","v":""}]
[null,null,null,null,null,null,null,null,null,null,null,null,null,{"$f":"IFERROR(INDEX($A$2:$A$7000,MATCH(0,COUNTIF($N$1:$N93,$A$2:$A$7000),0)),\"\")","v":""}]
[null,null,null,null,null,null,null,null,null,null,null,null,null,{"$f":"IFERROR(INDEX($A$2:$A$7000,MATCH(0,COUNTIF($N$1:$N94,$A$2:$A$7000),0)),\"\")","v":""}]
[null,null,null,null,null,null,null,null,null,null,null,null,null,{"$f":"IFERROR(INDEX($A$2:$A$7000,MATCH(0,COUNTIF($N$1:$N95,$A$2:$A$7000),0)),\"\")","v":""}]
[null,null,null,null,null,null,null,null,null,null,null,null,null,{"$f":"IFERROR(INDEX($A$2:$A$7000,MATCH(0,COUNTIF($N$1:$N96,$A$2:$A$7000),0)),\"\")","v":""}]
[null,null,null,null,null,null,null,null,null,null,null,null,null,{"$f":"IFERROR(INDEX($A$2:$A$7000,MATCH(0,COUNTIF($N$1:$N97,$A$2:$A$7000),0)),\"\")","v":""}]
[null,null,null,null,null,null,null,null,null,null,null,null,null,{"$f":"IFERROR(INDEX($A$2:$A$7000,MATCH(0,COUNTIF($N$1:$N98,$A$2:$A$7000),0)),\"\")","v":""}]
[null,null,null,null,null,null,null,null,null,null,null,null,null,{"$f":"IFERROR(INDEX($A$2:$A$7000,MATCH(0,COUNTIF($N$1:$N99,$A$2:$A$7000),0)),\"\")","v":""}]
[null,null,null,null,null,null,null,null,null,null,null,null,null,{"$f":"IFERROR(INDEX($A$2:$A$7000,MATCH(0,COUNTIF($N$1:$N100,$A$2:$A$7000),0)),\"\")","v":""}]
[null,null,null,null,null,null,null,null,null,null,null,null,null,{"$f":"IFERROR(INDEX($A$2:$A$7000,MATCH(0,COUNTIF($N$1:$N101,$A$2:$A$7000),0)),\"\")","v":""}]
[null,null,null,null,null,null,null,null,null,null,null,null,null,{"$f":"IFERROR(INDEX($A$2:$A$7000,MATCH(0,COUNTIF($N$1:$N102,$A$2:$A$7000),0)),\"\")","v":""}]
[null,null,null,null,null,null,null,null,null,null,null,null,null,{"$f":"IFERROR(INDEX($A$2:$A$7000,MATCH(0,COUNTIF($N$1:$N103,$A$2:$A$7000),0)),\"\")","v":""}]
[null,null,null,null,null,null,null,null,null,null,null,null,null,{"$f":"IFERROR(INDEX($A$2:$A$7000,MATCH(0,COUNTIF($N$1:$N104,$A$2:$A$7000),0)),\"\")","v":""}]
[null,null,null,null,null,null,null,null,null,null,null,null,null,{"$f":"IFERROR(INDEX($A$2:$A$7000,MATCH(0,COUNTIF($N$1:$N105,$A$2:$A$7000),0)),\"\")","v":""}]
[null,null,null,null,null,null,null,null,null,null,null,null,null,{"$f":"IFERROR(INDEX($A$2:$A$7000,MATCH(0,COUNTIF($N$1:$N106,$A$2:$A$7000),0)),\"\")","v":""}]
[null,null,null,null,null,null,null,null,null,null,null,null,null,{"$f":"IFERROR(INDEX($A$2:$A$7000,MATCH(0,COUNTIF($N$1:$N107,$A$2:$A$7000),0)),\"\")","v":""}]
[null,null,null,null,null,null,null,null,null,null,null,null,null,{"$f":"IFERROR(INDEX($A$2:$A$7000,MATCH(0,COUNTIF($N$1:$N108,$A$2:$A$7000),0)),\"\")","v":""}]
[null,null,null,null,null,null,null,null,null,null,null,null,null,{"$f":"IFERROR(INDEX($A$2:$A$7000,MATCH(0,COUNTIF($N$1:$N109,$A$2:$A$7000),0)),\"\")","v":""}]
[null,null,null,null,null,null,null,null,null,null,null,null,null,{"$f":"IFERROR(INDEX($A$2:$A$7000,MATCH(0,COUNTIF($N$1:$N110,$A$2:$A$7000),0)),\"\")","v":""}]
[null,null,null,null,null,null,null,null,null,null,null,null,null,{"$f":"IFERROR(INDEX($A$2:$A$7000,MATCH(0,COUNTIF($N$1:$N111,$A$2:$A$7000),0)),\"\")","v":""}]
[null,null,null,null,null,null,null,null,null,null,null,null,null,{"$f":"IFERROR(INDEX($A$2:$A$7000,MATCH(0,COUNTIF($N$1:$N112,$A$2:$A$7000),0)),\"\")","v":""}]
[null,null,null,null,null,null,null,null,null,null,null,null,null,{"$f":"IFERROR(INDEX($A$2:$A$7000,MATCH(0,COUNTIF($N$1:$N113,$A$2:$A$7000),0)),\"\")","v":""}]
[null,null,null,null,null,null,null,null,null,null,null,null,null,{"$f":"IFERROR(INDEX($A$2:$A$7000,MATCH(0,COUNTIF($N$1:$N114,$A$2:$A$7000),0)),\"\")","v":""}]
[null,null,null,null,null,null,null,null,null,null,null,null,null,{"$f":"IFERROR(INDEX($A$2:$A$7000,MATCH(0,COUNTIF($N$1:$N115,$A$2:$A$7000),0)),\"\")","v":""}]
[null,null,null,null,null,null,null,null,null,null,null,null,null,{"$f":"IFERROR(INDEX($A$2:$A$7000,MATCH(0,COUNTIF($N$1:$N116,$A$2:$A$7000),0)),\"\")","v":""}]
[null,null,null,null,null,null,null,null,null,null,null,null,null,{"$f":"IFERROR(INDEX($A$2:$A$7000,MATCH(0,COUNTIF($N$1:$N117,$A$2:$A$7000),0)),\"\")","v":""}]
[null,null,null,null,null,null,null,null,null,null,null,null,null,{"$f":"IFERROR(INDEX($A$2:$A$7000,MATCH(0,COUNTIF($N$1:$N118,$A$2:$A$7000),0)),\"\")","v":""}]
[null,null,null,null,null,null,null,null,null,null,null,null,null,{"$f":"IFERROR(INDEX($A$2:$A$7000,MATCH(0,COUNTIF($N$1:$N119,$A$2:$A$7000),0)),\"\")","v":""}]
[null,null,null,null,null,null,null,null,null,null,null,null,null,{"$f":"IFERROR(INDEX($A$2:$A$7000,MATCH(0,COUNTIF($N$1:$N120,$A$2:$A$7000),0)),\"\")","v":""}]
[null,null,null,null,null,null,null,null,null,null,null,null,null,{"$f":"IFERROR(INDEX($A$2:$A$7000,MATCH(0,COUNTIF($N$1:$N121,$A$2:$A$7000),0)),\"\")","v":""}]
[null,null,null,null,null,null,null,null,null,null,null,null,null,{"$f":"IFERROR(INDEX($A$2:$A$7000,MATCH(0,COUNTIF($N$1:$N122,$A$2:$A$7000),0)),\"\")","v":""}]
[null,null,null,null,null,null,null,null,null,null,null,null,null,{"$f":"IFERROR(INDEX($A$2:$A$7000,MATCH(0,COUNTIF($N$1:$N123,$A$2:$A$7000),0)),\"\")","v":""}]
[null,null,null,null,null,null,null,null,null,null,null,null,null,{"$f":"IFERROR(INDEX($A$2:$A$7000,MATCH(0,COUNTIF($N$1:$N124,$A$2:$A$7000),0)),\"\")","v":""}]
[null,null,null,null,null,null,null,null,null,null,null,null,null,{"$f":"IFERROR(INDEX($A$2:$A$7000,MATCH(0,COUNTIF($N$1:$N125,$A$2:$A$7000),0)),\"\")","v":""}]
[null,null,null,null,null,null,null,null,null,null,null,null,null,{"$f":"IFERROR(INDEX($A$2:$A$7000,MATCH(0,COUNTIF($N$1:$N126,$A$2:$A$7000),0)),\"\")","v":""}]
[null,null,null,null,null,null,null,null,null,null,null,null,null,{"$f":"IFERROR(INDEX($A$2:$A$7000,MATCH(0,COUNTIF($N$1:$N127,$A$2:$A$7000),0)),\"\")","v":""}]
[null,null,null,null,null,null,null,null,null,null,null,null,null,{"$f":"IFERROR(INDEX($A$2:$A$7000,MATCH(0,COUNTIF($N$1:$N128,$A$2:$A$7000),0)),\"\")","v":""}]
[null,null,null,null,null,null,null,null,null,null,null,null,null,{"$f":"IFERROR(INDEX($A$2:$A$7000,MATCH(0,COUNTIF($N$1:$N129,$A$2:$A$7000),0)),\"\")","v":""}]
[null,null,null,null,null,null,null,null,null,null,null,null,null,{"$f":"IFERROR(INDEX($A$2:$A$7000,MATCH(0,COUNTIF($N$1:$N130,$A$2:$A$7000),0)),\"\")","v":""}]
[null,null,null,null,null,null,null,null,null,null,null,null,null,{"$f":"IFERROR(INDEX($A$2:$A$7000,MATCH(0,COUNTIF($N$1:$N131,$A$2:$A$7000),0)),\"\")","v":""}]
[null,null,null,null,null,null,null,null,null,null,null,null,null,{"$f":"IFERROR(INDEX($A$2:$A$7000,MATCH(0,COUNTIF($N$1:$N132,$A$2:$A$7000),0)),\"\")","v":""}]
[null,null,null,null,null,null,null,null,null,null,null,null,null,{"$f":"IFERROR(INDEX($A$2:$A$7000,MATCH(0,COUNTIF($N$1:$N133,$A$2:$A$7000),0)),\"\")","v":""}]
[null,null,null,null,null,null,null,null,null,null,null,null,null,{"$f":"IFERROR(INDEX($A$2:$A$7000,MATCH(0,COUNTIF($N$1:$N134,$A$2:$A$7000),0)),\"\")","v":""}]
[null,null,null,null,null,null,null,null,null,null,null,null,null,{"$f":"IFERROR(INDEX($A$2:$A$7000,MATCH(0,COUNTIF($N$1:$N135,$A$2:$A$7000),0)),\"\")","v":""}]
[null,null,null,null,null,null,null,null,null,null,null,null,null,{"$f":"IFERROR(INDEX($A$2:$A$7000,MATCH(0,COUNTIF($N$1:$N136,$A$2:$A$7000),0)),\"\")","v":""}]
[null,null,null,null,null,null,null,null,null,null,null,null,null,{"$f":"IFERROR(INDEX($A$2:$A$7000,MATCH(0,COUNTIF($N$1:$N137,$A$2:$A$7000),0)),\"\")","v":""}]
[null,null,null,null,null,null,null,null,null,null,null,null,null,{"$f":"IFERROR(INDEX($A$2:$A$7000,MATCH(0,COUNTIF($N$1:$N138,$A$2:$A$7000),0)),\"\")","v":""}]
[null,null,null,null,null,null,null,null,null,null,null,null,null,{"$f":"IFERROR(INDEX($A$2:$A$7000,MATCH(0,COUNTIF($N$1:$N139,$A$2:$A$7000),0)),\"\")","v":""}]
[null,null,null,null,null,null,null,null,null,null,null,null,null,{"$f":"IFERROR(INDEX($A$2:$A$7000,MATCH(0,COUNTIF($N$1:$N140,$A$2:$A$7000),0)),\"\")","v":""}]
[null,null,null,null,null,null,null,null,null,null,null,null,null,{"$f":"IFERROR(INDEX($A$2:$A$7000,MATCH(0,COUNTIF($N$1:$N141,$A$2:$A$7000),0)),\"\")","v":""}]
[null,null,null,null,null,null,null,null,null,null,null,null,null,{"$f":"IFERROR(INDEX($A$2:$A$7000,MATCH(0,COUNTIF($N$1:$N142,$A$2:$A$7000),0)),\"\")","v":""}]
[null,null,null,null,null,null,null,null,null,null,null,null,null,{"$f":"IFERROR(INDEX($A$2:$A$7000,MATCH(0,COUNTIF($N$1:$N143,$A$2:$A$7000),0)),\"\")","v":""}]
[null,null,null,null,null,null,null,null,null,null,null,null,null,{"$f":"IFERROR(INDEX($A$2:$A$7000,MATCH(0,COUNTIF($N$1:$N144,$A$2:$A$7000),0)),\"\")","v":""}]
[null,null,null,null,null,null,null,null,null,null,null,null,null,{"$f":"IFERROR(INDEX($A$2:$A$7000,MATCH(0,COUNTIF($N$1:$N145,$A$2:$A$7000),0)),\"\")","v":""}]
[null,null,null,null,null,null,null,null,null,null,null,null,null,{"$f":"IFERROR(INDEX($A$2:$A$7000,MATCH(0,COUNTIF($N$1:$N146,$A$2:$A$7000),0)),\"\")","v":""}]
[null,null,null,null,null,null,null,null,null,null,null,null,null,{"$f":"IFERROR(INDEX($A$2:$A$7000,MATCH(0,COUNTIF($N$1:$N147,$A$2:$A$7000),0)),\"\")","v":""}]
[null,null,null,null,null,null,null,null,null,null,null,null,null,{"$f":"IFERROR(INDEX($A$2:$A$7000,MATCH(0,COUNTIF($N$1:$N148,$A$2:$A$7000),0)),\"\")","v":""}]
[null,null,null,null,null,null,null,null,null,null,null,null,null,{"$f":"IFERROR(INDEX($A$2:$A$7000,MATCH(0,COUNTIF($N$1:$N149,$A$2:$A$7000),0)),\"\")","v":""}]
[null,null,null,null,null,null,null,null,null,null,null,null,null,{"$f":"IFERROR(INDEX($A$2:$A$7000,MATCH(0,COUNTIF($N$1:$N150,$A$2:$A$7000),0)),\"\")","v":""}]